[Event "Late-Titled-Tuesday-Blitz-April-23-2024"]
[Site "Chess.com"]
[Date "2024.04.23"]
[Round "1"]
[White "Narek_Ghimoyan"]
[Black "Fantastic_Power"]
[Result "1-0"]
[WhiteElo "2432"]
[BlackElo "2701"]
[TimeControl "180+1"]
[EndTime "14:07:35 PDT"]
[Termination "Narek_Ghimoyan won on time"]

1. d4 {[%clk 0:02:58.5]} 1... Nf6 {[%clk 0:02:59.4]} 2. c4 {[%clk 0:02:59.1]}
2... Nc6 {[%clk 0:03:00.1]} 3. Nf3 {[%clk 0:02:58.6]} 3... e6 {[%clk 0:03:00.5]}
4. Nc3 {[%clk 0:02:58.1]} 4... Bb4 {[%clk 0:03:01.1]} 5. Bd2 {[%clk 0:02:56.6]}
5... d6 {[%clk 0:03:00.8]} 6. e3 {[%clk 0:02:55.1]} 6... O-O {[%clk 0:03:00.6]}
7. a3 {[%clk 0:02:55.6]} 7... Bxc3 {[%clk 0:03:00.7]} 8. Bxc3 {[%clk 0:02:56.5]}
8... Qe7 {[%clk 0:03:01.5]} 9. Be2 {[%clk 0:02:52.7]} 9... e5 {[%clk 0:03:01.9]}
10. O-O {[%clk 0:02:52.9]} 10... h6 {[%clk 0:03:01.1]} 11. Qc2 {[%clk
0:02:49.1]} 11... Bg4 {[%clk 0:02:59.5]} 12. dxe5 {[%clk 0:02:46.9]} 12... dxe5
{[%clk 0:02:54.5]} 13. h3 {[%clk 0:02:45.4]} 13... Bh5 {[%clk 0:02:54.4]} 14. b4
{[%clk 0:02:42.1]} 14... Bg6 {[%clk 0:02:54.2]} 15. Qb2 {[%clk 0:02:40.6]} 15...
e4 {[%clk 0:01:34.4]} 16. Ne5 {[%clk 0:02:38.7]} 16... Nxe5 {[%clk 0:01:33.4]}
17. Bxe5 {[%clk 0:02:39.6]} 17... a5 {[%clk 0:01:25.4]} 18. Rfd1 {[%clk
0:02:38.4]} 18... Rfd8 {[%clk 0:01:24.5]} 19. c5 {[%clk 0:02:33.9]} 19... Ne8
{[%clk 0:01:21.1]} 20. Bc4 {[%clk 0:02:32.6]} 20... axb4 {[%clk 0:01:12.6]} 21.
axb4 {[%clk 0:02:32.2]} 21... Rxd1+ {[%clk 0:01:11.1]} 22. Rxd1 {[%clk
0:02:33.1]} 22... Bf5 {[%clk 0:01:06.1]} 23. Qd4 {[%clk 0:02:26.9]} 23... h5
{[%clk 0:00:50.2]} 24. Bd5 {[%clk 0:02:21.5]} 24... c6 {[%clk 0:00:49.8]} 25.
Bb3 {[%clk 0:02:20.1]} 25... Be6 {[%clk 0:00:45]} 26. Bxe6 {[%clk 0:02:14.2]}
26... Qxe6 {[%clk 0:00:45.9]} 27. Bg3 {[%clk 0:02:14.7]} 27... Nf6 {[%clk
0:00:43.5]} 28. Bh4 {[%clk 0:02:09.1]} 28... Nd5 {[%clk 0:00:43.3]} 29. b5
{[%clk 0:02:09.7]} 29... Kh7 {[%clk 0:00:31.6]} 30. bxc6 {[%clk 0:02:09.1]}
30... bxc6 {[%clk 0:00:32.5]} 31. Bg3 {[%clk 0:02:05.9]} 31... g5 {[%clk
0:00:28.5]} 32. Qe5 {[%clk 0:01:57.3]} 32... Qxe5 {[%clk 0:00:22.3]} 33. Bxe5
{[%clk 0:01:58.2]} 33... Ra2 {[%clk 0:00:18.2]} 34. Rb1 {[%clk 0:01:56.6]} 34...
Rc2 {[%clk 0:00:18.4]} 35. Bd4 {[%clk 0:01:56.1]} 35... Nc3 {[%clk 0:00:12.2]}
36. Rb7 {[%clk 0:01:53.4]} 36... Kg6 {[%clk 0:00:04]} 37. Rc7 {[%clk 0:01:51.9]}
37... Ne2+ {[%clk 0:00:03.8]} 38. Kf1 {[%clk 0:01:51.8]} 38... Nxd4 {[%clk
0:00:03.9]} 39. exd4 {[%clk 0:01:52.2]} 39... f5 {[%clk 0:00:01.6]} 40. Rxc6+
{[%clk 0:01:52.1]} 40... Kf7 {[%clk 0:00:02.4]} 41. Rd6 {[%clk 0:01:52.1]} 41...
f4 {[%clk 0:00:02.4]} 42. c6 {[%clk 0:01:51.2]} 42... Rc1+ {[%clk 0:00:02.7]}
43. Ke2 {[%clk 0:01:51.2]} 43... Rc2+ {[%clk 0:00:03.1]} 44. Ke1 {[%clk
0:01:51.8]} 44... e3 {[%clk 0:00:01.9]} 45. fxe3 {[%clk 0:01:52.1]} 45... fxe3
{[%clk 0:00:02.4]} 46. Rd7+ {[%clk 0:01:52.2]} 46... Ke6 {[%clk 0:00:01.6]} 47.
d5+ {[%clk 0:01:52.1]} 47... Ke5 {[%clk 0:00:02.5]} 48. c7 {[%clk 0:01:52]}
48... Ke4 {[%clk 0:00:01.9]} 49. Re7+ {[%clk 0:01:32.2]} 49... Kd3 {[%clk
0:00:02.4]} 50. Kd1 {[%clk 0:01:22]} 50... Rxg2 {[%clk 0:00:02.4]} 51. Rxe3+
{[%clk 0:01:19.5]} 51... Kxe3 {[%clk 0:00:02.3]} 52. c8=Q {[%clk 0:01:19.7]}
52... Rd2+ {[%clk 0:00:02.1]} 53. Kc1 {[%clk 0:01:17.9]} 53... Rxd5 {[%clk
0:00:03]} 54. Qe6+ {[%clk 0:01:17.1]} 54... Kd4 {[%clk 0:00:02.7]} 55. Qf6+
{[%clk 0:01:17.1]} 55... Ke4 {[%clk 0:00:03.2]} 56. Qg6+ {[%clk 0:01:17.1]}
56... Kf4 {[%clk 0:00:03.3]} 57. Qxh5 {[%clk 0:01:17.3]} 57... Kf5 {[%clk
0:00:01.9]} 58. Qg4+ {[%clk 0:01:17.2]} 58... Kf6 {[%clk 0:00:02.2]} 59. Kc2
{[%clk 0:01:17.1]} 59... Rf5 {[%clk 0:00:01.8]} 60. Kd3 {[%clk 0:01:17]} 60...
Rf4 {[%clk 0:00:02.3]} 61. Qg3 {[%clk 0:01:16.6]} 61... Rh4 {[%clk 0:00:02.6]}
62. Ke3 {[%clk 0:01:16.8]} 62... Kg6 {[%clk 0:00:03.3]} 63. Qf3 {[%clk
0:01:16.5]} 63... Kh6 {[%clk 0:00:03.3]} 64. Qc6+ {[%clk 0:01:14.6]} 64... Kh5
{[%clk 0:00:03.5]} 65. Qd7 {[%clk 0:01:15]} 65... Kh6 {[%clk 0:00:03.1]} 66. Kf3
{[%clk 0:01:14.5]} 66... Rf4+ {[%clk 0:00:02.9]} 67. Kg3 {[%clk 0:01:14.7]}
67... Rh4 {[%clk 0:00:03.5]} 68. Qe6+ {[%clk 0:01:15.1]} 68... Kh5 {[%clk
0:00:03.7]} 69. Qf6 {[%clk 0:01:15.6]} 69... Rf4 {[%clk 0:00:02.8]} 70. Qg7
{[%clk 0:01:15.7]} 1-0

[Event "Late-Titled-Tuesday-Blitz-April-23-2024"]
[Site "Chess.com"]
[Date "2024.04.23"]
[Round "1"]
[White "Romkachess"]
[Black "realburq"]
[Result "1-0"]
[WhiteElo "2671"]
[BlackElo "2363"]
[TimeControl "180+1"]
[EndTime "14:07:36 PDT"]
[Termination "Romkachess won by resignation"]

1. e4 {[%clk 0:03:00.1]} 1... e5 {[%clk 0:02:57.4]} 2. d4 {[%clk 0:02:57.9]}
2... exd4 {[%clk 0:02:56.4]} 3. Qxd4 {[%clk 0:02:57.9]} 3... Nc6 {[%clk
0:02:55.5]} 4. Qe3 {[%clk 0:02:57.7]} 4... g6 {[%clk 0:02:36.4]} 5. Nc3 {[%clk
0:02:53.3]} 5... Bg7 {[%clk 0:02:36.2]} 6. Bd2 {[%clk 0:02:52.4]} 6... d6 {[%clk
0:02:35.1]} 7. O-O-O {[%clk 0:02:51.9]} 7... Nge7 {[%clk 0:02:32.6]} 8. h4
{[%clk 0:02:47.2]} 8... h5 {[%clk 0:02:30.3]} 9. Nh3 {[%clk 0:02:42.5]} 9...
Bxh3 {[%clk 0:02:25.4]} 10. Rxh3 {[%clk 0:02:36.6]} 10... Qd7 {[%clk 0:02:25.4]}
11. Bb5 {[%clk 0:02:35]} 11... O-O-O {[%clk 0:02:22]} 12. Nd5 {[%clk 0:02:20.6]}
12... Kb8 {[%clk 0:02:12]} 13. Nxe7 {[%clk 0:02:10.2]} 13... Qxe7 {[%clk
0:02:09]} 14. Bxc6 {[%clk 0:02:10.4]} 14... bxc6 {[%clk 0:02:08.9]} 15. Qb3+
{[%clk 0:02:10.6]} 15... Ka8 {[%clk 0:02:05.2]} 16. Qa4 {[%clk 0:02:11.5]} 16...
Rb8 {[%clk 0:01:55.9]} 17. Qxc6+ {[%clk 0:02:07.3]} 17... Rb7 {[%clk 0:01:55.6]}
18. Rb3 {[%clk 0:02:08.1]} 18... Rb8 {[%clk 0:01:48.9]} 19. Bg5 {[%clk
0:02:07.4]} 19... Qe8 {[%clk 0:01:25.1]} 20. Qxe8 {[%clk 0:02:04.7]} 20... Rxe8
{[%clk 0:01:26]} 21. Rxb7 {[%clk 0:02:00.8]} 21... Kxb7 {[%clk 0:01:26.9]} 22.
f3 {[%clk 0:02:00.7]} 22... Kc6 {[%clk 0:01:22.7]} 23. c3 {[%clk 0:01:58.4]}
23... a5 {[%clk 0:01:19.3]} 24. Kc2 {[%clk 0:01:58.4]} 24... a4 {[%clk
0:01:19.1]} 25. a3 {[%clk 0:01:55.2]} 25... Kb5 {[%clk 0:01:05.4]} 26. Rd5+
{[%clk 0:01:54.5]} 26... Ka6 {[%clk 0:00:54.3]} 27. c4 {[%clk 0:01:41.5]} 27...
Rb8 {[%clk 0:00:51.3]} 28. Bc1 {[%clk 0:01:41.4]} 28... Rb3 {[%clk 0:00:35.5]}
29. c5 {[%clk 0:01:39.3]} 29... Rb5 {[%clk 0:00:30.8]} 30. cxd6 {[%clk
0:01:28.8]} 30... Rxd5 {[%clk 0:00:30]} 31. exd5 {[%clk 0:01:29.7]} 31... cxd6
{[%clk 0:00:29.5]} 32. Bf4 {[%clk 0:01:29.3]} 32... Bf8 {[%clk 0:00:25.8]} 33.
b3 {[%clk 0:01:27.9]} 33... Kb5 {[%clk 0:00:23.1]} 34. Be3 {[%clk 0:01:22]}
34... Be7 {[%clk 0:00:18.1]} 35. Bf2 {[%clk 0:01:18.1]} 35... Bf6 {[%clk
0:00:17.6]} 36. g3 {[%clk 0:00:57.8]} 36... Be5 {[%clk 0:00:16.1]} 37. g4 {[%clk
0:00:55.6]} 37... f5 {[%clk 0:00:15.5]} 38. gxh5 {[%clk 0:00:53.4]} 38... gxh5
{[%clk 0:00:16.4]} 39. Be1 {[%clk 0:00:41.4]} 39... Bf4 {[%clk 0:00:14.6]} 40.
Bb4 {[%clk 0:00:38.9]} 40... Be5 {[%clk 0:00:13.9]} 41. Bc3 {[%clk 0:00:36]}
41... Kc5 {[%clk 0:00:12.1]} 42. f4 {[%clk 0:00:16.9]} 42... axb3+ {[%clk
0:00:11.9]} 43. Kxb3 {[%clk 0:00:16.8]} 43... Bxc3 {[%clk 0:00:12.2]} 44. Kxc3
{[%clk 0:00:17.7]} 44... Kxd5 {[%clk 0:00:12.4]} 45. Kd3 {[%clk 0:00:16.2]}
45... Kc5 {[%clk 0:00:12.2]} 46. a4 {[%clk 0:00:16.3]} 46... Kd5 {[%clk
0:00:12.2]} 47. a5 {[%clk 0:00:16.3]} 47... Kc5 {[%clk 0:00:12.4]} 48. Kc3
{[%clk 0:00:15.1]} 48... Kb5 {[%clk 0:00:11.2]} 49. Kd4 {[%clk 0:00:15.3]} 49...
Kxa5 {[%clk 0:00:11.8]} 50. Kd5 {[%clk 0:00:16.2]} 50... Kb4 {[%clk 0:00:12.5]}
51. Kxd6 {[%clk 0:00:16.8]} 51... Kc4 {[%clk 0:00:13.3]} 52. Ke5 {[%clk
0:00:17.6]} 52... Kc5 {[%clk 0:00:13.8]} 53. Kxf5 {[%clk 0:00:18.5]} 53... Kd6
{[%clk 0:00:14.4]} 54. Kf6 {[%clk 0:00:18.7]} 1-0

[Event "Late-Titled-Tuesday-Blitz-April-23-2024"]
[Site "Chess.com"]
[Date "2024.04.23"]
[Round "1"]
[White "arenal72"]
[Black "rhwr"]
[Result "1-0"]
[WhiteElo "2626"]
[BlackElo "2288"]
[TimeControl "180+1"]
[EndTime "14:07:36 PDT"]
[Termination "arenal72 won by resignation"]

1. Nf3 {[%clk 0:03:00.9]} 1... c5 {[%clk 0:02:59.3]} 2. g3 {[%clk 0:02:58.7]}
2... d5 {[%clk 0:02:59.1]} 3. Bg2 {[%clk 0:02:58.9]} 3... Nc6 {[%clk 0:02:59.7]}
4. O-O {[%clk 0:02:59.2]} 4... Nf6 {[%clk 0:03:00.2]} 5. d3 {[%clk 0:02:59.1]}
5... g6 {[%clk 0:03:00.7]} 6. Nbd2 {[%clk 0:02:56]} 6... Bg7 {[%clk 0:03:01.1]}
7. e4 {[%clk 0:02:56.1]} 7... O-O {[%clk 0:02:59.5]} 8. Qe2 {[%clk 0:02:55.3]}
8... dxe4 {[%clk 0:02:52.7]} 9. dxe4 {[%clk 0:02:53.2]} 9... Nd4 {[%clk
0:02:48.8]} 10. Nxd4 {[%clk 0:02:52]} 10... cxd4 {[%clk 0:02:49.3]} 11. e5
{[%clk 0:02:39.7]} 11... Nd5 {[%clk 0:02:47.6]} 12. Nb3 {[%clk 0:02:32.5]} 12...
Nb6 {[%clk 0:02:28.2]} 13. Rd1 {[%clk 0:02:28]} 13... Qc7 {[%clk 0:02:23.3]} 14.
Bf4 {[%clk 0:02:20.8]} 14... e6 {[%clk 0:02:10]} 15. Rxd4 {[%clk 0:02:12]} 15...
Bd7 {[%clk 0:02:05]} 16. Rad1 {[%clk 0:02:07.1]} 16... Bc6 {[%clk 0:01:58.1]}
17. c3 {[%clk 0:01:59.4]} 17... Bxg2 {[%clk 0:01:56.5]} 18. Kxg2 {[%clk
0:02:00.3]} 18... Nd5 {[%clk 0:01:54]} 19. Nd2 {[%clk 0:01:57.5]} 19... h6
{[%clk 0:01:48.4]} 20. h4 {[%clk 0:01:54.2]} 20... Rfd8 {[%clk 0:01:38.6]} 21.
Nf3 {[%clk 0:01:39.8]} 21... Nxf4+ {[%clk 0:01:31.6]} 22. gxf4 {[%clk
0:01:35.2]} 22... Rxd4 {[%clk 0:01:31.8]} 23. Rxd4 {[%clk 0:01:34.6]} 23... Rd8
{[%clk 0:01:27.3]} 24. Rxd8+ {[%clk 0:01:31.5]} 24... Qxd8 {[%clk 0:01:27.3]}
25. Qd2 {[%clk 0:01:31.4]} 25... Qb6 {[%clk 0:01:23.4]} 26. b4 {[%clk 0:01:29]}
26... Qc6 {[%clk 0:01:15.6]} 27. Kg3 {[%clk 0:01:26.1]} 27... Bf8 {[%clk
0:01:14.1]} 28. Qd4 {[%clk 0:01:21]} 28... a6 {[%clk 0:01:08]} 29. Qd3 {[%clk
0:01:06]} 29... Qa4 {[%clk 0:00:59.6]} 30. Qd2 {[%clk 0:01:05]} 30... a5 {[%clk
0:00:57.2]} 31. bxa5 {[%clk 0:01:03.5]} 31... Qxa5 {[%clk 0:00:57]} 32. h5
{[%clk 0:01:02.4]} 32... gxh5 {[%clk 0:00:53.6]} 33. Nd4 {[%clk 0:00:59.6]}
33... Qa6 {[%clk 0:00:43.6]} 34. Qe2 {[%clk 0:00:56.1]} 34... Qxe2 {[%clk
0:00:42]} 35. Nxe2 {[%clk 0:00:57]} 35... Bc5 {[%clk 0:00:40.9]} 36. f3 {[%clk
0:00:53.7]} 36... Be3 {[%clk 0:00:38.4]} 37. Kh4 {[%clk 0:00:51.5]} 37... Kg7
{[%clk 0:00:37.4]} 38. Kxh5 {[%clk 0:00:51.8]} 38... Bf2 {[%clk 0:00:34]} 39.
Kg4 {[%clk 0:00:51.2]} 39... Kg6 {[%clk 0:00:33.2]} 40. a4 {[%clk 0:00:46.4]}
40... h5+ {[%clk 0:00:33.6]} 41. Kh3 {[%clk 0:00:46]} 41... Kf5 {[%clk
0:00:33.4]} 42. c4 {[%clk 0:00:44.9]} 42... Be3 {[%clk 0:00:32.2]} 43. Kh4
{[%clk 0:00:40.9]} 43... Bxf4 {[%clk 0:00:30.9]} 44. Nxf4 {[%clk 0:00:39.7]}
44... Kxf4 {[%clk 0:00:31.2]} 45. Kxh5 {[%clk 0:00:40.6]} 45... Kxe5 {[%clk
0:00:31.6]} 46. Kg5 {[%clk 0:00:40.9]} 46... f6+ {[%clk 0:00:28]} 47. Kg6 {[%clk
0:00:40.7]} 47... f5 {[%clk 0:00:27]} 48. c5 {[%clk 0:00:41]} 48... Kd5 {[%clk
0:00:24.8]} 49. Kf6 {[%clk 0:00:40.7]} 49... f4 {[%clk 0:00:23.1]} 50. Kg5
{[%clk 0:00:37.1]} 50... Kxc5 {[%clk 0:00:22.8]} 51. Kxf4 {[%clk 0:00:37.1]}
51... Kd4 {[%clk 0:00:19.5]} 52. a5 {[%clk 0:00:35.2]} 52... Kd5 {[%clk
0:00:16.8]} 53. Kg5 {[%clk 0:00:33.1]} 53... e5 {[%clk 0:00:15.9]} 54. Kf5
{[%clk 0:00:30.6]} 54... Kd4 {[%clk 0:00:15.7]} 55. Ke6 {[%clk 0:00:30.8]} 55...
Ke3 {[%clk 0:00:13]} 56. Kxe5 {[%clk 0:00:30.8]} 56... Kxf3 {[%clk 0:00:13.9]}
57. Kd6 {[%clk 0:00:31]} 57... Ke4 {[%clk 0:00:14.3]} 58. Kc7 {[%clk 0:00:31.3]}
58... Kd5 {[%clk 0:00:14.8]} 59. Kxb7 {[%clk 0:00:31.8]} 59... Kc5 {[%clk
0:00:15.6]} 60. a6 {[%clk 0:00:32.7]} 60... Kb5 {[%clk 0:00:16.3]} 61. a7 {[%clk
0:00:33.6]} 1-0

[Event "Late-Titled-Tuesday-Blitz-April-23-2024"]
[Site "Chess.com"]
[Date "2024.04.23"]
[Round "1"]
[White "pifion"]
[Black "chesslh93"]
[Result "1-0"]
[WhiteElo "2677"]
[BlackElo "2364"]
[TimeControl "180+1"]
[EndTime "14:07:40 PDT"]
[Termination "pifion won on time"]

1. d4 {[%clk 0:02:58.9]} 1... d5 {[%clk 0:02:59.5]} 2. Nf3 {[%clk 0:02:58.2]}
2... Nf6 {[%clk 0:02:59.5]} 3. c4 {[%clk 0:02:58]} 3... e6 {[%clk 0:02:58.6]} 4.
g3 {[%clk 0:02:57.5]} 4... Be7 {[%clk 0:02:58.1]} 5. Bg2 {[%clk 0:02:57.4]} 5...
O-O {[%clk 0:02:58.1]} 6. O-O {[%clk 0:02:57.6]} 6... dxc4 {[%clk 0:02:58]} 7.
Qc2 {[%clk 0:02:54.3]} 7... a6 {[%clk 0:02:57.9]} 8. a4 {[%clk 0:02:53.6]} 8...
Bd7 {[%clk 0:02:57.5]} 9. Qxc4 {[%clk 0:02:53.3]} 9... Bc6 {[%clk 0:02:57]} 10.
Bg5 {[%clk 0:02:53.7]} 10... Bd5 {[%clk 0:02:55.8]} 11. Qd3 {[%clk 0:02:41]}
11... Be4 {[%clk 0:02:54]} 12. Qe3 {[%clk 0:02:38]} 12... Bxf3 {[%clk
0:02:24.6]} 13. Bxf3 {[%clk 0:02:37.3]} 13... c6 {[%clk 0:02:20.9]} 14. Nc3
{[%clk 0:02:30.1]} 14... a5 {[%clk 0:02:18]} 15. Rfd1 {[%clk 0:02:23]} 15... Na6
{[%clk 0:02:17.2]} 16. Qd2 {[%clk 0:02:16.8]} 16... Nb4 {[%clk 0:01:14.7]} 17.
e4 {[%clk 0:02:15.1]} 17... Nd7 {[%clk 0:01:09.8]} 18. Be3 {[%clk 0:02:11.9]}
18... h6 {[%clk 0:00:59.5]} 19. Be2 {[%clk 0:02:09]} 19... Bg5 {[%clk
0:00:49.7]} 20. f4 {[%clk 0:02:08.2]} 20... Be7 {[%clk 0:00:50.2]} 21. Bc4
{[%clk 0:02:05.5]} 21... Nf6 {[%clk 0:00:46.5]} 22. Qe2 {[%clk 0:02:03.1]} 22...
Qc7 {[%clk 0:00:41]} 23. Rd2 {[%clk 0:02:00.4]} 23... Rad8 {[%clk 0:00:34.2]}
24. Rad1 {[%clk 0:01:57.3]} 24... Rd7 {[%clk 0:00:33.2]} 25. g4 {[%clk 0:01:55]}
25... Nh7 {[%clk 0:00:27.2]} 26. Qf2 {[%clk 0:01:46.3]} 26... Re8 {[%clk
0:00:21.8]} 27. h4 {[%clk 0:01:45.2]} 27... Qd8 {[%clk 0:00:20.7]} 28. g5 {[%clk
0:01:44.9]} 28... h5 {[%clk 0:00:15.2]} 29. f5 {[%clk 0:01:42.1]} 29... Bd6
{[%clk 0:00:09.1]} 30. g6 {[%clk 0:01:31.8]} 30... fxg6 {[%clk 0:00:07.4]} 31.
fxe6 {[%clk 0:01:30.6]} 31... Rde7 {[%clk 0:00:07.5]} 32. d5 {[%clk 0:01:26.2]}
32... Nf6 {[%clk 0:00:06.6]} 33. Bg5 {[%clk 0:01:24.6]} 33... Ng4 {[%clk
0:00:05.8]} 34. Qe2 {[%clk 0:01:15.6]} 34... Rf8 {[%clk 0:00:05.9]} 35. Rf1
{[%clk 0:01:09.4]} 35... Bc5+ {[%clk 0:00:06]} 36. Kg2 {[%clk 0:01:08.3]} 36...
Qd6 {[%clk 0:00:06.1]} 37. Rxf8+ {[%clk 0:01:06.9]} 37... Kxf8 {[%clk
0:00:05.9]} 38. dxc6 {[%clk 0:01:03.2]} 38... Qh2+ {[%clk 0:00:05.1]} 39. Kf3
{[%clk 0:00:59.8]} 39... Nxc6 {[%clk 0:00:02.6]} 40. Qxh2 {[%clk 0:00:58.7]}
40... Nxh2+ {[%clk 0:00:03.5]} 41. Rxh2 {[%clk 0:00:58.5]} 41... Ne5+ {[%clk
0:00:03.9]} 42. Ke2 {[%clk 0:00:58.1]} 42... Nxc4 {[%clk 0:00:04.8]} 43. Bxe7+
{[%clk 0:00:56]} 43... Kxe7 {[%clk 0:00:05.4]} 44. Rg2 {[%clk 0:00:56.1]} 44...
Kxe6 {[%clk 0:00:05.2]} 45. Rxg6+ {[%clk 0:00:56]} 45... Kf7 {[%clk 0:00:05.8]}
46. Rg5 {[%clk 0:00:56]} 46... Be7 {[%clk 0:00:03.3]} 47. Rxh5 {[%clk
0:00:56.1]} 47... Nxb2 {[%clk 0:00:03.4]} 48. Rb5 {[%clk 0:00:55.9]} 48... Nc4
{[%clk 0:00:02.7]} 49. Rxb7 {[%clk 0:00:56]} 49... Nd6 {[%clk 0:00:02.5]} 50.
Ra7 {[%clk 0:00:55.2]} 50... Ke6 {[%clk 0:00:02.1]} 51. Rxa5 {[%clk 0:00:54.7]}
51... Bxh4 {[%clk 0:00:02.4]} 52. Kd3 {[%clk 0:00:53.8]} 52... Be7 {[%clk
0:00:02]} 53. Nd5 {[%clk 0:00:53.4]} 53... Bd8 {[%clk 0:00:01.6]} 54. Ra6 {[%clk
0:00:53]} 54... Bh4 {[%clk 0:00:02.5]} 55. Nf4+ {[%clk 0:00:52]} 55... Kd7
{[%clk 0:00:02.4]} 56. e5 {[%clk 0:00:50.4]} 56... Nb7 {[%clk 0:00:02.5]} 57.
Kc4 {[%clk 0:00:49.7]} 57... Kc7 {[%clk 0:00:02.6]} 58. Ne6+ {[%clk 0:00:48.4]}
1-0

[Event "Late-Titled-Tuesday-Blitz-April-23-2024"]
[Site "Chess.com"]
[Date "2024.04.23"]
[Round "1"]
[White "AungTZ"]
[Black "Artem_Koval"]
[Result "1-0"]
[WhiteElo "2030"]
[BlackElo "2544"]
[TimeControl "180+1"]
[EndTime "14:07:40 PDT"]
[Termination "AungTZ won by checkmate"]

1. e4 {[%clk 0:02:58.9]} 1... Nc6 {[%clk 0:02:58.7]} 2. Nf3 {[%clk 0:02:58.4]}
2... d5 {[%clk 0:02:59]} 3. exd5 {[%clk 0:02:58.3]} 3... Qxd5 {[%clk 0:02:59.9]}
4. Nc3 {[%clk 0:02:58.1]} 4... Qh5 {[%clk 0:03:00.1]} 5. Be2 {[%clk 0:02:56.9]}
5... Bg4 {[%clk 0:02:58.8]} 6. O-O {[%clk 0:02:54.8]} 6... O-O-O {[%clk
0:02:58.4]} 7. h3 {[%clk 0:02:54.7]} 7... Bxf3 {[%clk 0:02:56.7]} 8. Bxf3 {[%clk
0:02:54.4]} 8... Qg6 {[%clk 0:02:57.4]} 9. d3 {[%clk 0:02:52.5]} 9... e5 {[%clk
0:02:54.1]} 10. Re1 {[%clk 0:02:43.5]} 10... f6 {[%clk 0:02:46]} 11. Be4 {[%clk
0:02:41.5]} 11... Qe8 {[%clk 0:02:42.2]} 12. Nb5 {[%clk 0:02:26.2]} 12... Kb8
{[%clk 0:02:38.6]} 13. Be3 {[%clk 0:02:17.6]} 13... a6 {[%clk 0:02:35.5]} 14.
Nc3 {[%clk 0:01:39.9]} 14... Nge7 {[%clk 0:02:32.4]} 15. b4 {[%clk 0:01:36]}
15... Nxb4 {[%clk 0:02:12.9]} 16. Rb1 {[%clk 0:01:32.7]} 16... Nbd5 {[%clk
0:02:13.5]} 17. Nxd5 {[%clk 0:01:28.3]} 17... Nxd5 {[%clk 0:02:14.4]} 18. c4
{[%clk 0:01:25.8]} 18... Nb4 {[%clk 0:02:13.9]} 19. a3 {[%clk 0:01:20.8]} 19...
Nc6 {[%clk 0:02:13.5]} 20. Qf3 {[%clk 0:01:18.6]} 20... Rd6 {[%clk 0:02:06.5]}
21. c5 {[%clk 0:01:13.7]} 21... Re6 {[%clk 0:02:06.1]} 22. Bd5 {[%clk
0:01:11.2]} 22... Ka8 {[%clk 0:01:48.4]} 23. Bxe6 {[%clk 0:01:07.3]} 23... Qxe6
{[%clk 0:01:49.3]} 24. d4 {[%clk 0:01:07.1]} 24... e4 {[%clk 0:01:42.5]} 25. Qd1
{[%clk 0:01:04.5]} 25... Qd5 {[%clk 0:01:40]} 26. Qb3 {[%clk 0:01:00.9]} 26...
Qxb3 {[%clk 0:01:35.4]} 27. Rxb3 {[%clk 0:01:00.7]} 27... Ne7 {[%clk 0:01:36.3]}
28. Reb1 {[%clk 0:00:51.3]} 28... Kb8 {[%clk 0:01:07.6]} 29. Rxb7+ {[%clk
0:00:48.6]} 29... Kc8 {[%clk 0:01:08.5]} 30. d5 {[%clk 0:00:37.9]} 30... Nxd5
{[%clk 0:00:55.2]} 31. c6 {[%clk 0:00:37.6]} 31... Kd8 {[%clk 0:00:54.7]} 32.
Rd1 {[%clk 0:00:32.4]} 32... Ke7 {[%clk 0:00:34.8]} 33. Rxd5 {[%clk 0:00:31.6]}
33... Ke6 {[%clk 0:00:35.7]} 34. Rd8 {[%clk 0:00:27.6]} 34... g6 {[%clk
0:00:32.8]} 35. Rbb8 {[%clk 0:00:27.1]} 35... Kf7 {[%clk 0:00:32.8]} 36. Bc5
{[%clk 0:00:25]} 36... Bxc5 {[%clk 0:00:32.2]} 37. Rxh8 {[%clk 0:00:24.8]} 37...
f5 {[%clk 0:00:33.1]} 38. Rxh7+ {[%clk 0:00:22.4]} 38... Ke6 {[%clk 0:00:32.5]}
39. Rd8 {[%clk 0:00:22]} 39... f4 {[%clk 0:00:31.2]} 40. Rxc7 {[%clk 0:00:20.2]}
40... e3 {[%clk 0:00:30.7]} 41. fxe3 {[%clk 0:00:19.2]} 41... fxe3 {[%clk
0:00:31.6]} 42. Kf1 {[%clk 0:00:19.7]} 42... Bb6 {[%clk 0:00:31.1]} 43. Re8+
{[%clk 0:00:19.2]} 43... Kf5 {[%clk 0:00:30.5]} 44. Rd7 {[%clk 0:00:18.7]} 44...
Kf4 {[%clk 0:00:30.4]} 45. Ke2 {[%clk 0:00:19.3]} 45... g5 {[%clk 0:00:30.5]}
46. Rf7+ {[%clk 0:00:18.9]} 46... Kg3 {[%clk 0:00:30.7]} 47. Rg8 {[%clk
0:00:18.9]} 47... g4 {[%clk 0:00:30.5]} 48. Rxg4+ {[%clk 0:00:18.8]} 48... Kh2
{[%clk 0:00:31.4]} 49. h4 {[%clk 0:00:19.1]} 49... a5 {[%clk 0:00:32]} 50. h5
{[%clk 0:00:19.1]} 50... a4 {[%clk 0:00:32.2]} 51. h6 {[%clk 0:00:19.3]} 51...
Kg1 {[%clk 0:00:32.1]} 52. h7 {[%clk 0:00:18.8]} 52... Bd4 {[%clk 0:00:32.4]}
53. Rxd4 {[%clk 0:00:18.4]} 53... Kxg2 {[%clk 0:00:32]} 54. Rg4+ {[%clk
0:00:18.4]} 54... Kh3 {[%clk 0:00:32.2]} 55. h8=Q+ {[%clk 0:00:17.7]} 55... Kxg4
{[%clk 0:00:32.3]} 56. Qg8+ {[%clk 0:00:18]} 56... Kh3 {[%clk 0:00:31.8]} 57.
Rh7# {[%clk 0:00:18.9]} 1-0